fUST/lending_fUST_20240302
["ID","MTS","AMOUNT","RATE_DAILY","PERIOD"]
[316064323,1709343046686,-500.0,0.00021166,2]
[316064325,1709343046695,-500.0,0.00021166,2]
[316064327,1709343046704,-500.0,0.00021166,2]
[316064329,1709343046713,-500.0,0.00021166,2]
[316064331,1709343046722,-500.0,0.00021166,2]
[316064333,1709343046731,-500.0,0.00021166,2]
[316064335,1709343046740,-6700.15628009,0.00021167,2]
[316064337,1709343046749,-50000.0,0.00021167,3]
[316064339,1709343046757,-50000.0,0.00021167,3]
[316064341,1709343046766,-50000.0,0.00021167,3]
[316064343,1709343046775,-98418.68885602,0.00021167,4]
[316064345,1709343046784,-3217.45000879,0.00021171,4]
[316064347,1709343046793,-434.84423434,0.00021172,2]
[316064349,1709343046801,-596.45,0.00021175,2]
[316064351,1709343046810,-1762.98,0.00021175,2]
[316064352,1709343046819,-337.78895958,0.00021175,2]
[316064354,1709343046828,-829.52,0.00021175,2]
[316064356,1709343046837,-846.23,0.00021175,2]
[316064358,1709343046846,-500.0,0.00021175,2]
[316064360,1709343046854,-18519.30773579,0.00021176,2]
[316064362,1709343046863,-4008.1701743,0.00021176,2]
[316064364,1709343046873,-925.46020381,0.00021176,4]
[316064367,1709343046883,-23574.84655747,0.00021181,4]
[316064368,1709343046892,-525.0,0.00021186,2]
[316064370,1709343046901,-1934.89951907,0.00021186,2]
[316064372,1709343046910,-580.46985572,0.00021186,2]
[316064374,1709343046919,-7524.45187819,0.0002119,2]
[316064376,1709343046928,-2666.1748,0.00021195,7]
[316064378,1709343046937,-803.95352873,0.00021382,2]
[316064389,1709343047018,-803.95352873,0.00021697,2]
[316064391,1709343047037,-620.76991984,0.00021843,2]
[316064394,1709343047047,-1517.77066136,0.000219,2]
[316064395,1709343047056,-1796.26,0.00021917,2]
[316064397,1709343047065,-947.25,0.00021917,2]
[316064400,1709343047076,-843.19,0.00021917,2]
[316064401,1709343047085,-851.39,0.00021917,2]
[316064404,1709343047095,-400.24472666,0.00021918,2]
[316064406,1709343047104,-327.2251864,0.00022,2]
[316064407,1709343047113,-157.1486779,0.0002201,2]
[316064409,1709343047124,-803.95352873,0.00022011,2]
[316064411,1709343047133,-803.95352873,0.00022326,2]
[316064413,1709343047142,-493.069484,0.000225,10]
[316064415,1709343047151,-803.95352873,0.00022641,2]
[316064417,1709343047160,-620.03849599,0.00022935,2]
[316064419,1709343047168,-803.95352873,0.00022956,2]
[316064421,1709343047177,-272.22,0.00023,7]
[316064423,1709343047186,-2788.91634066,0.00023,2]
[316064425,1709343047196,-153.0,0.00023041,2]
[316064428,1709343047206,-5000.0,0.00023069,5]
[316064430,1709343047215,-1000.0,0.00023081,5]
[316064432,1709343047224,-306.0,0.00023178,2]
[316064433,1709343047233,-287.6731672,0.00023178,2]
[316064435,1709343047242,-202.0455997,0.00023178,2]
[316064437,1709343047251,-306.0,0.00023178,2]
[316064439,1709343047260,-257.4123915,0.00023178,2]
[316064441,1709343047269,-217.9000002,0.00023178,2]
[316064443,1709343047278,-200.7008514,0.00023178,2]
[316064445,1709343047288,-153.0,0.00023178,2]
[316064447,1709343047297,-306.0,0.00023178,2]
[316064450,1709343047306,-154.2502474,0.00023178,2]
[316064451,1709343047315,-154.1263103,0.00023178,2]
[316064453,1709343047324,-203.3801096,0.00023178,2]
[316064455,1709343047335,-803.95352873,0.0002327,2]
[316064457,1709343047344,-2550.55,0.00023286,3]
[316064460,1709343047356,-1000.0,0.0002334,5]
[316064461,1709343047365,-5000.0,0.0002334,5]
[316064463,1709343047375,-1000.0,0.00023341,5]
[316064466,1709343047385,-1000.0,0.00023344,5]
[316064468,1709343047395,-500.0,0.00023394,2]
[316064470,1709343047405,-500.0,0.00023394,2]
[316064472,1709343047414,-500.0,0.00023394,2]
[316064474,1709343047423,-1724.21211612,0.00023395,2]
[316064475,1709343047433,-803.95352873,0.00023585,2]
[316064477,1709343047442,-1796.26,0.00023594,2]
[316064479,1709343047451,-947.25,0.00023594,2]
[316064481,1709343047461,-843.19,0.00023594,2]
[316064483,1709343047470,-596.45,0.00023594,2]
[316064485,1709343047478,-1762.98,0.00023594,2]
[316064487,1709343047487,-851.39,0.00023594,2]
[316064489,1709343047496,-829.52,0.00023594,2]
[316064491,1709343047506,-846.23,0.00023594,2]
[316064493,1709343047515,-500.0,0.00023594,2]
[316064495,1709343047526,-596.45,0.00023716,2]
[316064497,1709343047537,-1762.98,0.00023716,2]
[316064499,1709343047545,-829.52,0.00023716,2]
[316064501,1709343047555,-846.23,0.00023716,2]
[316064503,1709343047564,-500.0,0.00023716,2]
[316064505,1709343047573,-50000.0,0.00023717,5]
[316064507,1709343047582,-3376.47790038,0.000238,7]
[316064509,1709343047591,-500.0,0.00023854,2]
[316064511,1709343047600,-7744.19206114,0.00023855,5]
[316064513,1709343047609,-1000.0,0.00023887,2]
[316064515,1709343047618,-596.45,0.00023899,2]
[316064517,1709343047629,-1762.98,0.00023899,2]
[316064519,1709343047638,-829.52,0.00023899,2]
[316064521,1709343047647,-846.23,0.00023899,2]
[316064523,1709343047656,-3599.999999,0.000239,2]
[316064525,1709343047665,-803.95352873,0.000239,2]
[316064527,1709343047674,-500.0,0.00023903,2]
[316064529,1709343047685,-500.0,0.00023903,2]
[316064532,1709343047694,-1796.26,0.00023903,2]
[316064533,1709343047703,-947.25,0.00023903,2]
[316064536,1709343047712,-843.19,0.00023903,2]
[316064538,1709343047722,-851.39,0.00023903,2]
[316064539,1709343047731,-500.0,0.00023903,2]
[316064542,1709343047740,-192.40668639,0.00023952,2]
[316064543,1709343047749,-234.5338,0.00023976,2]
[316064545,1709343047758,-1000.0,0.00023984,2]
[316064547,1709343047767,-500.0,0.00023997,2]
[316064549,1709343047776,-500.0,0.00023997,2]
[316064552,1709343047785,-1796.26,0.00023997,2]
[316064553,1709343047795,-1796.26,0.00023997,2]
[316064556,1709343047804,-947.25,0.00023997,2]
[316064557,1709343047814,-947.25,0.00023997,2]
[316064559,1709343047823,-843.19,0.00023997,2]
[316064562,1709343047832,-843.19,0.00023997,2]
[316064564,1709343047842,-596.45,0.00023997,2]
[316064565,1709343047851,-596.45,0.00023997,2]
[316064567,1709343047860,-596.45,0.00023997,2]
[316064569,1709343047869,-596.45,0.00023997,2]
[316064571,1709343047880,-596.5,0.00023997,2]
[316064573,1709343047890,-1762.98,0.00023997,2]
[316064575,1709343047900,-1762.98,0.00023997,2]
[316064577,1709343047909,-1762.98,0.00023997,2]
[316064579,1709343047918,-1762.98,0.00023997,2]
[316064581,1709343047927,-1763.19108648,0.00023997,2]
[316064583,1709343047936,-851.39,0.00023997,2]
[316064585,1709343047945,-851.39,0.00023997,2]
[316064587,1709343047954,-829.52,0.00023997,2]
[316064589,1709343047963,-829.52,0.00023997,2]
[316064591,1709343047972,-829.52,0.00023997,2]
[316064593,1709343047981,-829.52,0.00023997,2]
[316064595,1709343047990,-829.74515179,0.00023997,2]
[316064597,1709343048000,-500.0,0.00023997,2]
[316064599,1709343048009,-701.37,0.00023997,2]
[316064601,1709343048018,-701.37,0.00023997,2]
[316064603,1709343048028,-701.37,0.00023997,2]
[316064605,1709343048037,-701.37,0.00023997,2]
[316064607,1709343048047,-701.37,0.00023997,2]
[316064609,1709343048057,-846.23,0.00023997,2]
[316064611,1709343048066,-846.23,0.00023997,2]
[316064613,1709343048075,-846.23,0.00023997,2]
[316064615,1709343048084,-846.23,0.00023997,2]
[316064617,1709343048093,-846.36370571,0.00023997,2]
[316064619,1709343048102,-500.0,0.00023997,2]
[316064621,1709343048111,-500.0,0.00023997,2]
[316064623,1709343048119,-187.07005205,0.00023997,2]
[316064625,1709343048131,-214.11882186,0.00023998,2]
[316064627,1709343048140,-179.82350877,0.00023998,2]
[316064629,1709343048149,-179.20879215,0.00023998,2]
[316064631,1709343048158,-238.53127687,0.00023998,2]
[316064633,1709343048168,-400.0,0.00023998,2]
[316064635,1709343048177,-159.92299782,0.00023998,2]
[316064637,1709343048187,-181.99663702,0.00023998,2]
[316064639,1709343048197,-609.18566663,0.00023998,2]
[316064641,1709343048206,-179.57077703,0.00023998,2]
[316064643,1709343048216,-415.24699773,0.00023998,2]
[316064645,1709343048225,-155.723056,0.00023998,2]
[316064647,1709343048234,-400.82246414,0.00023998,2]
[316064649,1709343048243,-274.0342241,0.00023998,2]
[316064651,1709343048253,-538.36619156,0.00023998,2]
[316064653,1709343048263,-8010.05157774,0.00023998,2]
[316064655,1709343048273,-428.57901896,0.00023998,2]
[316064656,1709343048283,-926.94993445,0.00023998,2]
[316064658,1709343048293,-2111.9879456,0.00023998,2]
[316064660,1709343048303,-623.43272542,0.00023998,2]
[316064663,1709343048314,-20840.03860396,0.00023998,2]
[316064664,1709343048323,-8341.74556447,0.00023998,2]
[316064666,1709343048333,-500.0,0.00023998,2]
[316064668,1709343048345,-500.0,0.00023998,2]
[316064670,1709343048354,-176.2238837,0.00023998,2]
[316064672,1709343048364,-15928.06357623,0.00023998,2]
[316064675,1709343048376,-3175.5374615,0.00023998,2]
[316064682,1709343048435,-2269.99964398,0.00023998,2]
[316064684,1709343048444,-13458.95655965,0.00023998,2]
[316064686,1709343048453,-500.0,0.00023998,2]
[316064688,1709343048462,-155.29400805,0.00023998,2]
[316064690,1709343048471,-85.11942842,0.00023998,2]
[316064692,1709343048482,-70.31601104,0.00023998,2]
[316064694,1709343048491,-155.33157737,0.00023998,2]
[316064696,1709343048500,-155.19211949,0.00023998,2]
[316064698,1709343048509,-93.1602981,0.00023998,2]
[316064700,1709343048527,-61.98070397,0.00023998,2]
[316064702,1709343048536,-155.18673026,0.00023998,2]
[316064704,1709343048546,-155.42827656,0.00023998,2]
[316064706,1709343048555,-155.25062091,0.00023998,2]
[316064708,1709343048564,-155.18337255,0.00023998,2]
[316064710,1709343048578,-155.29305176,0.00023998,2]
[316064712,1709343048601,-155.23626298,0.00023998,2]
[316064714,1709343048624,-155.32355699,0.00023998,2]
[316064716,1709343048646,-155.35821152,0.00023998,2]
[316064718,1709343048666,-1016.76919743,0.00023999,2]
[316064720,1709343048688,-500.0,0.00023999,2]
[316064722,1709343048708,-376.71174629,0.00023999,2]
[316064724,1709343048723,-332.40772887,0.00023999,2]
[316064727,1709343048737,-167.59227113,0.00023999,2]
[316064729,1709343048745,-500.0,0.00023999,2]
[316064730,1709343048755,-500.0,0.00023999,2]
[316064732,1709343048764,-500.0,0.00023999,2]
[316064734,1709343048773,-257.00179428,0.00023999,2]
[316064736,1709343048783,-500.0,0.00023999,2]
[316064739,1709343048792,-269.03040247,0.00023999,2]
[316064741,1709343048801,-500.0,0.00023999,2]
[316064742,1709343048811,-500.0,0.00023999,2]
[316064744,1709343048820,-500.0,0.00023999,2]
[316064746,1709343048829,-500.0,0.00023999,2]
[316064748,1709343048838,-400.2,0.00023999,2]
[316064749,1709343048847,-500.0,0.00023999,2]
[316064750,1709343048856,-500.0,0.00023999,2]
[316064751,1709343048865,-500.0,0.00023999,2]
[316064752,1709343048876,-500.0,0.00023999,2]
[316064753,1709343048885,-500.0,0.00023999,2]
[316064754,1709343048894,-515.73,0.00023999,2]
[316064755,1709343048902,-1796.26,0.00023999,2]
[316064757,1709343048912,-1796.26,0.00023999,2]
[316064759,1709343048921,-1796.26,0.00023999,2]
[316064761,1709343048931,-1796.26,0.00023999,2]
[316064764,1709343048940,-1796.38,0.00023999,2]
[316064765,1709343048949,-947.25,0.00023999,2]
[316064768,1709343048959,-947.25,0.00023999,2]
[316064769,1709343048968,-947.25,0.00023999,2]
[316064771,1709343048977,-947.25,0.00023999,2]
[316064773,1709343048986,-947.4,0.00023999,2]
[316064775,1709343048998,-843.19,0.00023999,2]
[316064777,1709343049007,-843.19,0.00023999,2]
[316064779,1709343049016,-843.19,0.00023999,2]
[316064781,1709343049026,-843.19,0.00023999,2]
[316064783,1709343049035,-843.29,0.00023999,2]
[316064785,1709343049044,-851.39,0.00023999,2]
[316064787,1709343049053,-851.39,0.00023999,2]
[316064789,1709343049063,-851.39,0.00023999,2]
[316064791,1709343049072,-851.39,0.00023999,2]
[316064793,1709343049082,-851.42951478,0.00023999,2]
[316064795,1709343049091,-329.85887735,0.00023999,2]
[316064797,1709343049101,-19801.68277465,0.00024,5]
[316064800,1709343049114,-32485.3007988,0.00024,5]
[316064824,1709343049341,-153.0,0.00023178,2]
[316064826,1709343049351,-200.7008514,0.00023178,2]
[316064828,1709343049363,-262.67002082,0.00023998,2]
[316064830,1709343049373,-5317.47341456,0.00024,5]
[316064832,1709343049385,-21689.15952697,0.00024,5]
[316064834,1709343049396,-23371.87808877,0.00024,5]
[316064836,1709343049408,-1115.42130348,0.00024,5]
[316064839,1709343049419,-117308.67952737,0.00024,5]
[316064851,1709343049526,-500.7418751,0.00020547,2]
[316064853,1709343049535,-97.55846699,0.00020547,2]
[316064855,1709343049546,-403.4814772,0.00020547,2]
[316064857,1709343049556,-321.71,0.0002399,3]
[316064859,1709343049565,-3575.01192841,0.00024,5]
[316064861,1709343049577,-100000.0377,0.00024,5]
[316067514,1709343424275,173.0181049,0.00027397,120]
[316067645,1709344233019,-167.655957,0.00019431,2]
[316067647,1709344233029,-174.867465,0.00019718,2]
[316067649,1709344233039,-501.65719238,0.00020547,2]
[316067651,1709344233048,-500.0,0.00020547,2]
[316067653,1709344233058,-500.0,0.00020547,2]
[316067655,1709344233067,-501.12614478,0.00020547,2]
[316067657,1709344233076,-500.0,0.00020547,2]
[316067659,1709344233085,-500.0,0.00020547,2]
[316067661,1709344233095,-500.0,0.00020547,2]
[316067663,1709344233104,-500.0,0.00020547,2]
[316067665,1709344233113,-501.68267371,0.00020547,2]
[316067667,1709344233122,-500.0,0.00020547,2]
[316067669,1709344233131,-500.0,0.00020547,2]
[316067671,1709344233140,-501.53529706,0.00020547,2]
[316067673,1709344233150,-501.03109049,0.00020547,2]
[316067675,1709344233159,-500.0,0.00020547,2]
[316067677,1709344233169,-509.38267504,0.00020547,2]
[316067679,1709344233179,-500.0,0.00020547,2]
[316067681,1709344233188,-500.0,0.00020547,2]
[316067683,1709344233197,-500.0,0.00020547,2]
[316067685,1709344233207,-500.0,0.00020547,2]
[316067687,1709344233216,-440.40625938,0.00020547,2]
[316067690,1709344233229,-59.59374062,0.00020547,2]
[316067692,1709344233238,-500.0,0.00020547,2]
[316067694,1709344233248,-500.0,0.00020547,2]
[316067696,1709344233257,-503.20032969,0.00020547,2]
[316067697,1709344233266,-501.53209209,0.00020547,2]
[316067699,1709344233276,-264.42657311,0.00020547,2]
[316067701,1709344233285,-502.30537767,0.00020547,2]
[316067704,1709344233295,-503.82140751,0.00020547,2]
[316067705,1709344233304,-434.08255965,0.00020547,2]
[316067707,1709344233313,-646.37568878,0.00020547,2]
[316067710,1709344233322,-503.05339297,0.00020547,2]
[316067712,1709344233332,-500.77491965,0.00020547,2]
[316067714,1709344233341,-500.59450636,0.00020547,2]
[316067716,1709344233351,-169.33315232,0.00020547,2]
[316067717,1709344233360,-500.0,0.00020547,2]
[316067718,1709344233369,-114.02763315,0.00020547,2]
[316067719,1709344233380,-387.9029723,0.00020547,2]
[316067720,1709344233389,-557.34,0.00020547,2]
[316067721,1709344233398,-557.34,0.00020547,2]
[316067722,1709344233407,-97.25907999,0.00020547,2]
[316067938,1709344238173,-404.7745955,0.00020547,2]
[316067940,1709344238182,-500.31899009,0.00020547,2]
[316067942,1709344238191,-500.0,0.00020547,2]
[316067944,1709344238200,-500.0,0.00020547,2]
[316067946,1709344238210,-502.2620385,0.00020547,2]
[316067948,1709344238219,-501.01552369,0.00020547,2]
[316067950,1709344238228,-614.34189258,0.00020547,2]
[316067952,1709344238237,-501.73853523,0.00020547,2]
[316067954,1709344238246,-500.0,0.00020547,2]
[316067956,1709344238255,-501.15049004,0.00020547,2]
[316067958,1709344238263,-500.98284804,0.00020547,2]
[316067960,1709344238273,-501.39356006,0.00020547,2]
[316067962,1709344238283,-777.16,0.00020547,2]
[316067964,1709344238292,-777.16,0.00020547,2]
[316067966,1709344238301,-500.83807328,0.00020547,2]
[316067968,1709344238310,-502.40997722,0.00020547,2]
[316067970,1709344238319,-500.0,0.00020547,2]
[316067972,1709344238327,-500.0,0.00020547,2]
[316067974,1709344238336,-504.99324258,0.00020547,2]
[316067976,1709344238345,-500.0,0.00020547,2]
[316067978,1709344238354,-500.0,0.00020547,2]
[316067980,1709344238363,-436.79422324,0.00020547,2]
[316067982,1709344238372,-406.18048367,0.00020547,2]
[316067984,1709344238384,-501.91707969,0.00020547,2]
[316067986,1709344238393,-503.2923688,0.00020547,2]
[316067987,1709344238402,-266.87471245,0.00020547,2]
[316067989,1709344238411,-199.1282811,0.00020547,2]
[316067991,1709344238422,-500.0,0.00020547,2]
[316067993,1709344238431,-500.0,0.00020547,2]
[316067995,1709344238440,-501.48020078,0.00020547,2]
[316067997,1709344238450,-503.66105551,0.00020547,2]
[316067999,1709344238459,-419.23116836,0.00020547,2]
[316068001,1709344238468,-500.0,0.00020547,2]
[316068002,1709344238478,-506.58725101,0.00020547,2]
[316068003,1709344238487,-501.33955276,0.00020547,2]
[316068004,1709344238496,-331.8449325,0.00020547,2]
[316068005,1709344238505,-500.0,0.00020547,2]
[316068006,1709344238514,-501.66680731,0.00020547,2]
[316068007,1709344238524,-632.78900236,0.00020547,2]
[316068008,1709344238534,-501.31983803,0.00020547,2]
[316068009,1709344238542,-500.0,0.00020547,2]
[316068010,1709344238551,-500.0,0.00020547,2]
[316068011,1709344238562,-334.0859049,0.00020547,2]
[316068012,1709344238571,-500.0,0.00020547,2]
[316068013,1709344238581,-765.49,0.00020547,2]
[316068014,1709344238590,-500.0,0.00020547,2]
[316068015,1709344238688,-512.52975952,0.00020547,2]
[316068016,1709344238698,-500.88065105,0.00020547,2]
[316068017,1709344238707,-500.0,0.00020547,2]
[316068018,1709344238717,-500.0,0.00020547,2]
[316068019,1709344238729,-500.0,0.00020547,2]
[316068020,1709344238738,-500.0,0.00020547,2]
[316068021,1709344238747,-500.0,0.00020547,2]
[316068022,1709344238756,-500.0,0.00020547,2]
[316068023,1709344238766,-2214.15,0.00020547,2]
[316068024,1709344238776,-500.0,0.00020547,2]
[316068025,1709344238785,-500.0,0.00020547,2]
[316068026,1709344238794,-500.0,0.00020547,2]
[316068027,1709344238805,-500.0,0.00020547,2]
[316068028,1709344238816,-502.45945537,0.00020547,2]
[316068029,1709344238825,-918.69,0.00020547,2]
[316068030,1709344238834,-500.0,0.00020547,2]
[316068031,1709344238844,-500.0,0.00020547,2]
[316068033,1709344238853,-502.38515765,0.00020547,2]
[316068035,1709344238862,-500.0,0.00020547,2]
[316068037,1709344238872,-500.0,0.00020547,2]
[316068038,1709344238881,-500.0,0.00020547,2]
[316068039,1709344238890,-929.33,0.00020547,2]
[316068040,1709344238899,-500.0,0.00020547,2]
[316068041,1709344238909,-502.57247353,0.00020547,2]
[316068042,1709344238918,-505.34162691,0.00020547,2]
[316068043,1709344238930,-500.0,0.00020547,2]
[316068044,1709344238939,-500.0,0.00020547,2]
[316068045,1709344238949,-561.34,0.00020547,2]
[316068046,1709344238958,-203.29777487,0.00020547,2]
[316068047,1709344238967,-501.81279527,0.00020547,2]
[316068048,1709344238977,-500.0,0.00020547,2]
[316068049,1709344238986,-500.0,0.00020547,2]
[316068050,1709344238995,-576.75,0.00020547,2]
[316068051,1709344239004,-500.0,0.00020547,2]
[316068052,1709344239013,-500.0,0.00020547,2]
[316068053,1709344239022,-500.0,0.00020547,2]
[316068054,1709344239031,-372.26601719,0.00020547,2]
[316068055,1709344239040,-500.0,0.00020547,2]
[316068056,1709344239049,-500.88354738,0.00020547,2]
[316068057,1709344239058,-368.95,0.00020684,3]
[316068058,1709344239067,-307.46,0.00020684,3]
[316068059,1709344239077,-500.0,0.00020694,2]
[316068060,1709344239086,-500.0,0.00020694,2]
[316068061,1709344239095,-500.0,0.00020694,2]
[316068062,1709344239104,-500.0,0.00020694,2]
[316068063,1709344239113,-500.0,0.00020694,2]
[316068064,1709344239122,-500.0,0.00020694,2]
[316068065,1709344239131,-500.0,0.00020694,2]
[316068066,1709344239140,-500.0,0.00020694,2]
[316068067,1709344239148,-500.0,0.00020694,2]
[316068068,1709344239158,-500.0,0.00020694,2]
[316068070,1709344239167,-561.34,0.00020694,2]
[316068071,1709344239178,-500.0,0.00020694,2]
[316068072,1709344239187,-500.0,0.00020694,2]
[316068073,1709344239196,-500.0,0.00020694,2]
[316068074,1709344239205,-500.0,0.00020694,2]
[316068075,1709344239214,-500.0,0.00020694,2]
[316068076,1709344239225,-256.22,0.00020784,3]
[316068077,1709344239234,-500.0,0.00020794,2]
[316068078,1709344239243,-502.70543605,0.00020794,2]
[316068079,1709344239252,-500.0,0.00020794,2]
[316068080,1709344239261,-620.26214085,0.00020794,2]
[316068081,1709344239270,-500.0,0.00020794,2]
[316068082,1709344239279,-765.49,0.00020794,2]
[316068083,1709344239288,-500.0,0.00020794,2]
[316068084,1709344239297,-500.0,0.00020794,2]
[316068085,1709344239306,-500.0,0.00020794,2]
[316068086,1709344239315,-2214.15,0.00020794,2]
[316068087,1709344239323,-918.69,0.00020794,2]
[316068088,1709344239332,-500.0,0.00020794,2]
[316068089,1709344239341,-500.0,0.00020794,2]
[316068090,1709344239350,-500.0,0.00020794,2]
[316068091,1709344239359,-500.0,0.00020794,2]
[316068092,1709344239368,-929.33,0.00020794,2]
[316068093,1709344239378,-576.75,0.00020794,2]
[316068094,1709344239387,-500.0,0.00020794,2]
[316068095,1709344239396,-500.0,0.00020795,2]
[316068096,1709344239405,-500.0,0.00020795,2]
[316068097,1709344239415,-500.0,0.00020795,2]
[316068098,1709344239426,-500.0,0.00020795,2]
[316068099,1709344239435,-500.0,0.00020795,2]
[316068100,1709344239444,-500.0,0.00020795,2]
[316068101,1709344239453,-500.0,0.00020795,2]
[316068102,1709344239462,-557.34,0.00020795,2]
[316068103,1709344239471,-448.70416613,0.00020795,2]
[316068104,1709344239481,-777.16,0.00020795,2]
[316068105,1709344239490,-500.0,0.00020795,2]
[316068106,1709344239499,-500.0,0.00020795,2]
[316068107,1709344239508,-500.0,0.00020795,2]
[316068108,1709344239517,-1012.3,0.00020795,2]
[316068109,1709344239526,-788.46,0.00020795,2]
[316068110,1709344239535,-789.22,0.00020795,2]
[316068111,1709344239545,-500.0,0.00020795,2]
[316068112,1709344239554,-502.90253418,0.00020795,2]
[316068113,1709344239564,-500.0,0.00020891,2]
[316068114,1709344239573,-500.0,0.00020891,2]
[316068115,1709344239582,-500.0,0.00020891,2]
[316068116,1709344239591,-500.0,0.00020891,2]
[316068117,1709344239601,-511.89768432,0.00020891,2]
[316068118,1709344239610,-500.0,0.00020891,2]
[316068119,1709344239620,-500.0,0.00020891,2]
[316068120,1709344239629,-500.0,0.00020891,2]
[316068121,1709344239638,-500.0,0.00020891,2]
[316068122,1709344239647,-500.0,0.00020891,2]
[316068123,1709344239656,-561.34,0.00020891,2]
[316068124,1709344239665,-500.0,0.00020891,2]
[316068125,1709344239677,-500.0,0.00020891,2]
[316068126,1709344239685,-504.45752747,0.00020891,2]
[316068127,1709344239699,-500.0,0.00020891,2]
[316068128,1709344239708,-500.0,0.00020891,2]
[316068129,1709344239718,-500.0,0.00020892,2]
[316068130,1709344239732,-500.0,0.00020892,2]
[316068131,1709344239742,-500.0,0.00020892,2]
[316068132,1709344239751,-503.74861042,0.00020892,2]
[316068133,1709344239760,-500.0,0.00020892,2]
[316068134,1709344239769,-500.0,0.00020892,2]
[316068135,1709344239778,-289.47405276,0.00020892,2]
[316068136,1709344239787,-557.34,0.00020892,2]
[316068137,1709344239797,-777.16,0.00020892,2]
[316068138,1709344239806,-500.0,0.00020892,2]
[316068140,1709344239815,-500.0,0.00020892,2]
[316068142,1709344239825,-500.0,0.00020892,2]
[316068144,1709344239834,-273.0299271,0.00020892,2]
[316068145,1709344239842,-176.78049526,0.00020895,2]
[316068146,1709344239852,-345.97220144,0.00020991,2]
[316068147,1709344239861,-492.49279723,0.00020991,2]
[316068148,1709344239870,-500.0,0.00020991,2]
[316068149,1709344239879,-765.49,0.00020991,2]
[316068150,1709344239888,-500.0,0.00020991,2]
[316068151,1709344239898,-500.0,0.00020991,2]
[316068152,1709344239907,-500.0,0.00020991,2]
[316068153,1709344239916,-2214.15,0.00020991,2]
[316068154,1709344239927,-918.69,0.00020991,2]
[316068155,1709344239936,-500.0,0.00020991,2]
[316068156,1709344239945,-500.0,0.00020991,2]
[316068157,1709344239954,-500.0,0.00020991,2]
[316068158,1709344239963,-500.0,0.00020991,2]
[316068159,1709344239973,-929.33,0.00020991,2]
[316068160,1709344239982,-576.75,0.00020991,2]
[316068161,1709344239991,-504.31507577,0.00020991,2]
[316068162,1709344240000,-500.0,0.00020994,2]
[316068163,1709344240010,-500.0,0.00020994,2]
[316068164,1709344240019,-500.0,0.00020994,2]
[316068165,1709344240028,-500.0,0.00020994,2]
[316068166,1709344240037,-580.97935606,0.00020994,2]
[316068167,1709344240047,-500.0,0.00020994,2]
[316068168,1709344240056,-500.0,0.00020994,2]
[316068170,1709344240065,-500.0,0.00020994,2]
[316068172,1709344240075,-500.0,0.00020994,2]
[316068174,1709344240084,-561.34,0.00020994,2]
[316068176,1709344240094,-500.0,0.00020994,2]
[316068178,1709344240103,-500.0,0.00020994,2]
[316068180,1709344240112,-500.0,0.00020994,2]
[316068181,1709344240122,-500.0,0.00020995,2]
[316068182,1709344240131,-500.0,0.00020995,2]
[316068184,1709344240141,-500.0,0.00020995,2]
[316068186,1709344240151,-500.0,0.00020995,2]
[316068187,1709344240161,-500.0,0.00020995,2]
[316068188,1709344240170,-557.34,0.00020995,2]
[316068189,1709344240180,-777.16,0.00020995,2]
[316068190,1709344240190,-500.0,0.00020995,2]